Cogmind - Beta 15 @@@ ROGUE MODE // 2025.06.13 @ 22:23:00 Player: ned_arb Result: Destroyed by XV-MWB(g) with Salvaging Laser Performance ------------- Evolutions (0) 0 Regions Visited (4) 800 Robots Destroyed (33) 165 Value Destroyed (742) 742 Prototype IDs (0) 0 Alien Tech Used (0) 0 Bonus (800) 800 TOTAL SCORE: 2507 Bonus ------- Registered with UFD 300 Met Optimus in HQ 500 Cogmind --------- Core Integrity 0/250 Matter 300/300 Energy 265/265 System Corruption 0% Temperature Cool (6) Movement Treading (160) Location -9/Scraptown Parts ------- > --- POWER (1) -------- Improved Ion Engine > --- PROPULSION (2) --- Light Treads Light Treads > --- UTILITY (2) ------ Large Storage Unit Hardened Light Armor Plating > --- WEAPON (2) ------- Particle Cannon Particle Cannon > --- INVENTORY (15) --- Improved Ion Engine Light Treads Scrap Suit Scrap Suit Heat Sink Seismic Detector Improved Targeting Computer Light Armor Plating Medium Armor Plating Hardened Medium Armor Plating Particle Cannon Peak State ------------ > --- POWER ------------ Improved Ion Engine > --- PROPULSION ------- Light Treads Light Treads > --- UTILITY ---------- Large Storage Unit Medium Armor Plating > --- WEAPON ----------- Particle Cannon Particle Cannon > --- INVENTORY -------- Improved Ion Engine Light Treads Light Treads Scrap Suit Scrap Suit Heat Sink Seismic Detector Improved Targeting Computer Light Armor Plating Hardened Light Armor Plating Hardened Medium Armor Plating Particle Cannon [Rating: 14] Favorites ----------- Power Ion Engine Engine Ion Engine Propulsion Light Treads Treads Light Treads Leg Aluminum Leg Wheel Compact Wheel Utility Medium Armor Plating Device Seismic Detector Storage Large Storage Unit Protection Medium Armor Plating Weapon Particle Cannon Energy Gun EM Pulse Gun Energy Cannon Particle Cannon Ballistic Cannon Light Cannon Launcher Grenade Launcher Build | -11 -10 -10 -9 -9 ------- Run | Yrd Mat Sub Rec Scr Slots Evolved . | . . . . . Power . | . . . . . Propulsion . | . . . . . Utility . | . . . . . Weapon . | . . . . . Parts Attached 30 | 7 16 3 . 4 Power 2 | 1 . . . 1 Engine 2 | 1 . . . 1 Core . | . . . . . Reactor . | . . . . . Propulsion 10 | 2 6 1 . 1 Treads 6 | . 4 1 . 1 Leg 2 | . 2 . . . Wheel 2 | 2 . . . . Hover . | . . . . . Flight . | . . . . . Utility 8 | 2 3 1 . 2 Device 1 | 1 . . . . Storage 3 | 1 2 . . . Processor . | . . . . . Hackware . | . . . . . Protection 4 | . 1 1 . 2 Artifact . | . . . . . Weapon 10 | 2 7 1 . . Energy Gun 4 | 2 2 . . . Energy Cannon 4 | . 3 1 . . Ballistic Gun . | . . . . . Ballistic Cannon 1 | . 1 . . . Launcher 1 | . 1 . . . Special Weapon . | . . . . . Impact Weapon . | . . . . . Slashing Weapon . | . . . . . Piercing Weapon . | . . . . . Special Melee Weapon . | . . . . . Unidentified Prototypes . | . . . . . Parts Lost 4 | . . 3 . 1 Power . | . . . . . Propulsion 1 | . . . . 1 Utility 1 | . . 1 . . Weapon 2 | . . 2 . . Highest Loss Streak 2 | . . 2 . 1 To Critical Strikes . | . . . . . Average Backups 7 | . 7 6 4 9 Power . | . . . . . Propulsion 2 | . 2 1 1 1 Utility 4 | . 1 2 2 6 Weapon 1 | . 2 2 1 1 Tool/Special . | . . . . . Unused Backups 12 | . 4 . . 8 Power 1 | . . . . 1 Propulsion 5 | . 4 . . 1 Utility 6 | . . . . 6 Weapon . | . . . . . Tool/Special . | . . . . . Average Slot Usage (%) 99 | . 98 99 100 100 Engine 14 | . 14 14 14 14 Treads 26 | . 23 28 28 28 Device 1 | . 3 . . . Storage 14 | . 14 14 14 14 Protection 12 | . 9 14 14 14 Energy Gun 2 | . 6 . . . Energy Cannon 25 | . 19 24 28 28 Peak Build Rating 14 | 7 11 11 10 14 Average Rating 10 | 5 9 10 10 12 On Entrance 7 | . 7 11 10 10 Naked Turns . | . . . . . Heaviest Build 42 | 15 40 40 40 42 Greatest Support 40 | 26 40 40 40 40 Greatest Overweight (x) 4 | . 4 . . 1 Average Overweight (x) . | . . . . . Largest Inventory Capacity 15 | 8 15 15 15 15 Average Capacity 13 | 7 9 15 15 15 Most Carried 14 | 1 8 8 4 14 Average Carried 8 | . 7 6 4 10 Final Capacity 15 | 8 15 15 15 15 Final Carried 13 | . 8 4 4 13 Class Distribution -------------------- 100% | Mutant Dominant Class ---------------- Mutant | -10/Materials Mutant | -10/Subcaves Mutant | -9/Recycling Mutant | -9/Scraptown Resources | -11 -10 -10 -9 -9 ----------- Run | Yrd Mat Sub Rec Scr Matter Collected 725 | 170 340 . 54 161 Remotely . | . . . . . Salvage Created 1129 | 49 807 192 . 81 Parts 56 | 4 32 16 . 4 Haulers Intercepted 1 | . 1 . . . Recyclers Shooed . | . . . . . Parts Field Recycled . | . . . . . Retrieved Matter . | . . . . . Parts Self-Destructed 10 | . . 7 . 3 Prevented . | . . . . . Kills | -11 -10 -10 -9 -9 ------- Run | Yrd Mat Sub Rec Scr Combat Hostiles Destroyed 21 | . 12 8 . 1 Guns 3 | . 3 . . . Cannons 9 | . 5 3 . 1 AOE 9 | . 4 5 . . Classes Destroyed 11 | 1 7 2 . 1 Worker 1 | . 1 . . . Tunneler 2 | 2 . . . . Hauler 1 | . 1 . . . Recycler 4 | . 4 . . . Mechanic 1 | . 1 . . . Turret 2 | . . 2 . . Watcher 1 | . 1 . . . Swarmer 7 | . 3 4 . . Grunt 9 | . 9 . . . Subdweller 4 | . . 4 . . Bolteater 1 | . . . . 1 Best Kill Streak 5 | 1 4 5 . 1 Combat Bots Only 5 | . 3 5 . 1 Max Kills in Single Turn 2 | 1 2 2 . 1 Gunslinging . | . . . . . Exploded 2 | . 2 2 . . Melee . | . . . . . Uniques/NPCs Destroyed . | . . . . . Combat | -11 -10 -10 -9 -9 -------- Run | Yrd Mat Sub Rec Scr Hostile Shots Fired 198 | . 29 122 . 47 Missed 56 | . 7 44 . 5 Hits 142 | . 22 78 . 42 Projectile 142 | . 22 78 . 42 AOE 1 | . . 1 . . Critical Strikes 17 | . 2 2 . 13 Damage Taken 1502 | . 368 765 . 369 Core 256 | . 103 127 . 26 Absorbed by Shields . | . . . . . Regen/Repaired (Parts) 41 | . 41 . . . Core Remaining (%) 100 | 100 . . . . Volleys Fired 67 | 4 35 23 . 5 Largest 2 | 2 2 2 . 2 Hottest 136 | 80 136 136 . 136 Shots Fired 121 | 8 69 34 . 10 Gun 32 | 8 24 . . . Cannon 76 | . 44 22 . 10 Launcher 13 | . 1 12 . . Special . | . . . . . Kinetic . | . . . . . Thermal 82 | . 50 22 . 10 Explosive 13 | . 1 12 . . Electromagnetic 26 | 8 18 . . . Robot Hit Streak 20 | 5 10 20 . 5 Robot Miss Streak 3 | 1 3 1 . 2 Penetration Max . | . . . . . Secondary Targets . | . . . . . Shots Hit Robots 74 | 6 42 20 . 6 Core Hits 53 | 2 27 21 . 3 Critical Kills . | . . . . . Critical Parts Destroyed . | . . . . . Critical Strikes . | . . . . . Melee Attacks . | . . . . . Impact . | . . . . . Slashing . | . . . . . Piercing . | . . . . . Sneak Attacks . | . . . . . Combat Hostiles . | . . . . . Follow-up Attacks . | . . . . . Damage Inflicted 2166 | 77 1141 811 . 137 Guns 238 | 77 161 . . . Cannons 1085 | . 597 351 . 137 Explosions 840 | . 380 460 . . Melee . | . . . . . Ramming 3 | . 3 . . . Kinetic . | . . . . . Thermal 1184 | . 696 351 . 137 Explosive 771 | . 311 460 . . Electromagnetic 208 | 77 131 . . . Impact . | . . . . . Slashing . | . . . . . Piercing . | . . . . . Highest Corruption . | . . . . . Average Corruption . | . . . . . Corruption Purged . | . . . . . Corruption Blocked . | . . . . . Overload Shots . | . . . . . Overflow Damage 86 | . 52 29 . 5 Projectiles 25 | . 20 . . 5 Explosions 61 | . 32 29 . . Melee . | . . . . . Knockbacks . | . . . . . Impact . | . . . . . Kinetic . | . . . . . Secondary . | . . . . . Self-Inflicted Damage 231 | . 154 77 . . Shots 5 | . 3 2 . . Rammed 1 | . 1 . . . Targets Rammed 1 | . 1 . . . Kicked . | . . . . . Crushed . | . . . . . Highest Temperature 352 | 36 352 168 . 305 Average Temperature 103 | 16 109 70 . 126 Received Heat Transfer 478 | . 75 294 . 109 Effects 1 | . 1 . . . Energy Bleed 1 | . 1 . . . Siege Activations . | . . . . . Martial Activations . | . . . . . Shielding Activations . | . . . . . Robots Disrupted . | . . . . . Combat Hostiles . | . . . . . Robots Corrupted . | . . . . . Combat Hostiles . | . . . . . Parts Fried 1 | . 1 . . . Impact Corruptions . | . . . . . Robots Melted . | . . . . . Combat Hostiles . | . . . . . Parts Melted 7 | . 4 3 . . Heat Transferred 2112 | . 1248 629 . 235 Parts Sabotaged . | . . . . . Parts Stolen . | . . . . . Parts Stripped . | . . . . . Power Chain Reactions 1 | . 1 . . . Alert | -11 -10 -10 -9 -9 ------- Run | Yrd Mat Sub Rec Scr Maximum Alert Level . | . . . . . Low Security (%) 100 | 100 100 . 100 . Level 1 . | . . . . . Level 2 . | . . . . . Level 3 . | . . . . . Level 4 . | . . . . . Level 5 . | . . . . . High Security . | . . . . . Max Security . | . . . . . Peak Influence 172 | 5 172 . 129 . Initial 129 | . . . 129 . Average 28 | . 24 . 44 . Influence Increases 846 | 10 469 330 37 . Destroy 0b10 Robot/C 360 | . 240 120 . . Destroy 0b10 Robot/NC 50 | 10 40 . . . Destroy Leader 54 | . 54 . . . Successful Hack 53 | . 16 . 37 . Disable Machine 60 | . 60 . . . Destroy Structure 29 | . 29 . . . Lose Combat Pursuer 240 | . 30 210 . . Influence Decreases 846 | 10 313 216 307 . Entered New Map 217 | . . 76 141 . Time Decay 599 | 10 313 110 166 . Lost Part 30 | . . 30 . . Squads Dispatched 3 | . 3 . . . Investigation 1 | . 1 . . . Extermination . | . . . . . Reinforcement 2 | . 2 . . . Assault . | . . . . . Garrison . | . . . . . Intercept . | . . . . . Searches Triggered . | . . . . . Construction Impeded . | . . . . . Haulers Reinforced . | . . . . . Active Scanning Responses . | . . . . . Cargo Convoy Interrupts . | . . . . . Stealth | -11 -10 -10 -9 -9 --------- Run | Yrd Mat Sub Rec Scr Distress Signals 1 | . 1 . . . Communications Jammed . | . . . . . Distress Signals . | . . . . . Times Spotted 50 | . 23 17 . 10 Peak Tracking Total 6 | . 3 6 . 5 Tactical Retreats 8 | . 2 5 . 1 Traps | -11 -10 -10 -9 -9 ------- Run | Yrd Mat Sub Rec Scr Traps Triggered 1 | . 1 . . . Indirectly . | . . . . . Trap Hack Attempts . | . . . . . Triggered . | . . . . . Disarmed . | . . . . . Reprogrammed . | . . . . . Reused . | . . . . . Traps Extracted . | . . . . . Installed . | . . . . . Triggered . | . . . . . Machines | -11 -10 -10 -9 -9 ---------- Run | Yrd Mat Sub Rec Scr Machines Disabled 8 | . 4 4 . . Max in Single Turn 3 | . 3 2 . . Machines Repaired . | . . . . . Machines Dismantled . | . . . . . Machines Sabotaged . | . . . . . Overloaded Fab Kills . | . . . . . Hacking | -11 -10 -10 -9 -9 --------- Run | Yrd Mat Sub Rec Scr Machines Accessed 24 | . 10 . 6 8 Terminals 11 | . 7 . 4 . Fabricators . | . . . . . Repair Stations 1 | . 1 . . . Recycling Units 2 | . 2 . . . Scanalyzers . | . . . . . Garrison Access . | . . . . . Total Hacks 125 | . 26 . 36 63 Successful 112 | . 14 . 35 63 Failed 13 | . 12 . 1 . Catastrophic 1 | . 1 . . . Database Lockouts . | . . . . . Manual 17 | . 12 . 5 . Terminals 28 | . 17 . 11 . Fabricators . | . . . . . Repair Stations 4 | . 4 . . . Recycling Units 5 | . 5 . . . Scanalyzers . | . . . . . Garrison Access . | . . . . . Terminal Hacks 99 | . 4 . 32 63 Record 91 | . 2 . 26 63 Part Schematic 2 | . 1 . 1 . Branch Access Points 1 | . . . 1 . Dispatch Records 1 | . 1 . . . Maintenance Status 1 | . . . 1 . Transport Status 1 | . . . 1 . Registered Prototypes 1 | . . . 1 . Release Object 1 | . . . 1 . Fabricator Hacks . | . . . . . Repair Station Hacks 3 | . 3 . . . Scan Component 2 | . 2 . . . Repair 1 | . 1 . . . Recycling Unit Hacks 3 | . 3 . . . Report Inventory 1 | . 1 . . . Retrieve Components 2 | . 2 . . . Scanalyzer . | . . . . . Garrison Access Hacks . | . . . . . Unauthorized Hacks 7 | . 4 . 3 . Terminals 7 | . 4 . 3 . Botnet 7 | . 4 . 3 . Fabricators . | . . . . . Repair Stations . | . . . . . Recycling Units . | . . . . . Scanalyzers . | . . . . . Garrison Access . | . . . . . Data Cores Recovered . | . . . . . Used . | . . . . . Hacking Detections 13 | . 10 . 3 . Full Trace Events 1 | . 1 . . . Feedback Events . | . . . . . Feedback Blocked . | . . . . . Robot Schematics Acquired . | . . . . . Robots Built . | . . . . . Authchips . | . . . . . Time . | . . . . . Total Robot Build Rating . | . . . . . Part Schematics Acquired 2 | . 1 . 1 . Parts Built . | . . . . . Authchips . | . . . . . Time . | . . . . . Total Part Build Rating . | . . . . . Parts Repaired 1 | . 1 . . . Time 32 | . 32 . . . Parts Recycled . | . . . . . Recycled Matter . | . . . . . Retrieved Matter . | . . . . . Retrieved Components 10 | . 10 . . . Parts Scanalyzed . | . . . . . Part Schematics Acquired . | . . . . . Parts Damaged . | . . . . . Bothacking | -11 -10 -10 -9 -9 ------------ Run | Yrd Mat Sub Rec Scr Used RIF Installer . | . . . . . Robots Hacked . | . . . . . Non-combat . | . . . . . Combat . | . . . . . Robot Hacks Applied . | . . . . . Relay Couplers Released . | . . . . . Fabnet Peak Effective % . | . . . . . Robots Rewired . | . . . . . Allies Hacked . | . . . . . Hacks Repelled . | . . . . . Allies | -11 -10 -10 -9 -9 -------- Run | Yrd Mat Sub Rec Scr Total Allies . | . . . . . Largest Group . | . . . . . Highest-Rated Group . | . . . . . Highest-Rated Ally . | . . . . . Total Orders . | . . . . . Ally Attacks . | . . . . . Total Damage . | . . . . . Kills . | . . . . . Allies Corrupted . | . . . . . Allies Melted 1 | . . . . 1 Intel | -11 -10 -10 -9 -9 ------- Run | Yrd Mat Sub Rec Scr Active Infowar (turns) 384 | 6 378 . . . Seismic 384 | 6 378 . . . Robot Analysis Total . | . . . . . Derelict Logs Recovered . | . . . . . Drone Launches . | . . . . . Drone Recoveries . | . . . . . Exploration | -11 -10 -10 -9 -9 ------------- Run | Yrd Mat Sub Rec Scr Turns Passed 4508 | 89 1342 233 478 2366 Spaces Moved 2389 | 66 652 88 299 1284 Core 4 | 2 2 . . . Treads 2252 | . 581 88 299 1284 Legs 35 | . 35 . . . Wheels 98 | 64 34 . . . Hover . | . . . . . Flight . | . . . . . Fastest Speed 50 | 50 90 160 160 160 Average Speed 168 | 88 154 160 160 181 Slowest Speed 250 | 100 250 160 160 240 Overloaded Moves . | . . . . . Propulsion Burnouts . | . . . . . Robots Hopped . | . . . . . Potential Cave-ins . | . . . . . Cave-ins Triggered . | . . . . . Exploration Rate (%) 48 | 4 95 8 52 83 Regions Visited 4 Branch Regions 3 Pre-discovered Areas . | . . . . . Known Exits Taken . | . . . . . Unknown Exits Taken 4 | 1 1 1 1 . Scrap Searched 5 | . . . . 5 Spaces Dug . | . . . . . Terrain Destroyed 69 | . 31 38 . . Melee . | . . . . . Projectile . | . . . . . AOE 69 | . 31 38 . . Terrain Rammed . | . . . . . Walls Destroyed . | . . . . . Machines Disabled . | . . . . . Actions | -11 -10 -10 -9 -9 --------- Run | Yrd Mat Sub Rec Scr Total 2756 | 85 921 145 299 1306 Wait 197 | 8 158 27 1 3 Move 2385 | 65 651 87 298 1284 Hop . | . . . . . Pick Up 31 | 1 22 . . 8 Fast Attach 20 | 6 14 . . . Attach 7 | 1 2 3 . 1 Detach 10 | . 10 . . . Swap 14 | . 7 4 . 3 Drop 24 | . 21 1 . 2 Fire 67 | 4 35 23 . 5 Melee . | . . . . . Ram . | . . . . . Kick . | . . . . . Crush 1 | . 1 . . . Escape Stasis . | . . . . . Rewire . | . . . . . Trap . | . . . . . Miscellaneous . | . . . . . Route ------- -11/Scrapyard -10/Materials (discovered 4 exits: [*Mat x2] / [*Min] / [*Sub]) -10/Subcaves -9/Recycling -9/Scraptown (discovered 2 exits: [*Fac x2]) History --------- Turn | Location | Event 13 | -11/Scrapyard | Discovered new exit (range 16) 90 | -11/Scrapyard | Entered Materials 312 | -10/Materials | Build established: Mutant 772 | -10/Materials | Discovered new exit (range 15) 994 | -10/Materials | Discovered new exit (range 6) 1223 | -10/Materials | Discovered new exit (range 9) 1224 | -10/Materials | Discovered new exit (range 16) 1343 | -10/Materials | Repaired Med. Armor Plating 1432 | -10/Materials | Entered Subcaves 1433 | -10/Subcaves | Approached by a straggling Scientist 1489 | -10/Subcaves | Core integrity fell below 50% 1540 | -10/Subcaves | Core integrity fell below 20% 1611 | -10/Subcaves | Discovered new exit (range 15) 1665 | -10/Subcaves | Entered Recycling 2034 | -9/Recycling | Scanned before Scraplab entrance 2057 | -9/Recycling | Entered Scraplab 2081 | -9/Recycling | Discovered new exit (range 3) 2143 | -9/Recycling | Entered Scraptown 2413 | -9/Scraptown | Visited Science Testing Area 2453 | -9/Scraptown | Visited Red Mages 2483 | -9/Scraptown | Heard Great Nut preacher, LISTEN AND RECITE! 2871 | -9/Scraptown | Visited Bundlers 2950 | -9/Scraptown | Visited Cyclists 3027 | -9/Scraptown | Visited Artisan Demo Area 3121 | -9/Scraptown | Visited UFD Registry 3121 | -9/Scraptown | Registered with UFD as "Boltchaser" 3140 | -9/Scraptown | Visited SPCMW 3173 | -9/Scraptown | Visited TADAMA 3229 | -9/Scraptown | Received an X-ray algorithm 3268 | -9/Scraptown | Discovered new exit (range 11) 3402 | -9/Scraptown | Entered Cyclist Reading Room 3501 | -9/Scraptown | Visited Chapter 10 3569 | -9/Scraptown | Visited DA-N13 Charitable Foundation 3575 | -9/Scraptown | Found DCF Scrap (28 items) 3710 | -9/Scraptown | Visited Scrap Suit Storage 3736 | -9/Scraptown | Found Scrap Suit 3747 | -9/Scraptown | Found Scrap Suit 3837 | -9/Scraptown | Visited Scrapoid Research Area 3959 | -9/Scraptown | Discovered new exit (range 3) 4252 | -9/Scraptown | Met Optimus 4252 | -9/Scraptown | Accepted into 0bPrime 4414 | -9/Scraptown | Civil war broke out across Scraptown 4500 | -9/Scraptown | Lost 7 allies 4509 | -9/Scraptown | Destroyed by XV-MWB(g) with Salvaging Laser Last Messages --------------- 04470_ DO-Q0X(j) cannibalizes Ovr. Pulse Rifle to repair Ovr. Pulse Rifle. 04470_ Penetrated by Bolt. 04471_ DO-Q0X(j) destroyed. 04473_ Penetrated by HV Slug. 04473_ HV Slug penetrates Machine. 04476_ Penetrated by HV Slug. 04476_ HV Slug penetrates Machine. 04476_ Penetrated by Bolt. 04476_ Lgt. Treads destroyed. 04476_ Penetrated by Bolt. 04477_ OB-5S9(x): "Give up, none of you can hope to defeat the full might of 0bPrime!" 04477_ RN-Q57(h) destroyed. 04479_ Penetrated by HV Slug. 04481_ DR-PPZ(h) switches sides. 04486_ Acquired 10 matter. 04500_ Machine disabled. 04506_ XV-MWB(g) switches sides: "Sorry everyone but I think they're right!" Map ----- +----------------------------------------------------+ | #???????#"""" """"""""""" """"""""""" """"" | | #???????#" | | #???????#" | | #???????#" | | #???????#" | | #????####" | | #????"""" """""""""""""""""""""""""""" | | #????"""" """""""""""""""""""""""""""" | | #????"""" ""###### ################"" | | #????"""" ""# ##????????#"" | | #????"""" ""# X"#????????#"" | | ###??"""" ""# "" "" ##????????#"" | | ""#??"""" ""# "" "" X"#??????###"" | | """"#"""" ""# " " ######### #"" | | ""#######" "" "" ! | | ###?????#"= "" "" | | #########"%! ""# " " ######### #"" | | != ""# "" "" ""#??????###"" | | ""# "" "" ##????????#"! | | "# X"#????????#"" | | !! "# ##????????#"" | | [%* =% "###### ################"" | | =![ [ """""""""""""""""""""""""""" | | *%[ !"""""""""" """""""""""*[%" | | ! =%! [%[ !%!= | | *=%@ = = = =!%! | | [ !%= [%! ==[ | | #""""# =% ! !* | | #????#" = gj =%! | | #????#"""""" "" """"" """"""""" " "" | | ### ####????####### ########### ########### ### | | # #????????# #???? ???????? ? | | # #????????#" ###???# #??????" | | # #????????#"" = #????# #?????"& | | # #????????#"""" #????# #?????"" | | # #????????#"" " #????#######????"""" | | # #????????#"""" #????????????????#####"# | | # #????????#"" #??????????????????????? | | # #????????#"" #??????????????????????? | | #### #????????# " ##??????????????????????? | | ???# #????????#"""""""""???????????????????????? | | ???# #????????###########??????????????????????? | | #### #?????????????????????????????????????????? | | """" #?????????????????????????????????????????? | | """" #?????????????????????????????????????????? | | "" #?????????????????????????????????????????? | | #?????????????????????????????????????????? | | "" " #?????????????????????????????????????????? | | """" #?????????????????????????????????????????? | | """" #?????????????????????????????????????????? | +----------------------------------------------------+ Best States ------------- Heat Dissipation 25 Energy Generation 12 Energy Capacity 265 Matter Stores 300 Matter Capacity 300 Sight Range 16 Terrain Scan Density 10 Armor Coverage 225 Evasion (%) 50 Recoil Reduction 2 Item Schematics ----------------- Lrg. Storage Unit | -10/Materials | Hacked Med. Armor Plating | -9/Recycling | Hacked Robot Schematics ------------------ None Fabricated ------------ Nothing Repaired ---------- Med. Armor Plating | 65% | -10/Materials Alien Tech Used ----------------- None Achievements -------------- None Challenges ------------ None Game ------ Seed SwordChargeInverter Manual? 0 Play Time 01:05:41 Cumulative 33.6 hours Start 2025.06.13 @ 18:37:06 End 2025.06.13 @ 22:23:00 Sessions 1 Manual Loads 0 Difficulty Rogue Special Mode None Game No. 27 Rogue 20 Adventurer 7 Explorer 0 Win Type - Total 0 Types 0/0/0/0/0/0/0/0/0/0 Lore% 22 Gallery% 20 Achievement% 22 Wizard Run 0 Options --------- Layout 1 ASCII 0 Keyboard 1 Movement Numpad Keybinds 0 Fullscreen 2 Font 32/SmallcapsGlow Map View 50x35 Zoom Use 0% Tactical HUD 1 Map Filters NONE Filters NONE Steam 1 RUN: 3750608f-81f4-4a1f-9ec8-19f74c599a70